bitfinex/quotes_SOLUSD_20250429
["timestamp","ask_amount","ask_price","bid_price","bid_amount"]
[1745946282756,24.54403669,148.14,148.09,24.54403669]
[1745946282923,24.54403669,148.14,148.1,24.54403669]
[1745946283121,24.54403669,148.13,148.09,24.54403669]
[1745946283524,24.54403669,148.13,148.08,6.75310642]
[1745946283733,24.54403669,148.13,148.08,31.29714311]
[1745946284812,18.64964886,148.15,148.11,24.54403669]
[1745946285018,24.54403669,148.15,148.11,24.54403669]
[1745946285238,15.623,148.16,148.12,24.54403669]
[1745946285428,15.623,148.16,148.13,24.54403669]
[1745946285741,0.063,148.16,148.15,24.54403669]
[1745946286750,0.063,148.16,148.15,31.29395231]
[1745946287760,0.063,148.16,148.15,24.54403669]
[1745946288861,0.063,148.16,148.15,31.29395231]
[1745946289032,0.063,148.16,148.15,24.54403669]
[1745946290860,0.063,148.16,148.13,31.29470225]
[1745946291075,0.063,148.16,148.13,24.54403669]
[1745946291263,0.063,148.16,148.14,24.54403669]
[1745946292464,0.063,148.16,148.15,24.54403669]
[1745946293363,0.063,148.16,148.15,31.29395231]
[1745946295568,0.063,148.16,148.13,16.87705476]
[1745946295763,0.063,148.16,148.11,26.0]
[1745946295764,24.54403669,148.15,148.11,26.0]
[1745946296056,24.60703669,148.16,148.11,50.54403669]
[1745946296436,0.063,148.16,148.12,24.54403669]
[1745946296663,24.60703669,148.16,148.12,24.54403669]
[1745946296963,0.063,148.16,148.13,24.54403669]
[1745946297770,0.063,148.16,148.13,31.29479316]
[1745946298780,0.063,148.16,148.12,31.29515467]
[1745946299143,24.60703669,148.16,148.12,31.29515467]
[1745946300066,24.60703669,148.16,148.11,24.54403669]
[1745946300242,24.54403669,148.14,148.1,57.29595683]
[1745946300561,24.54403669,148.15,148.1,57.29595683]
[1745946301169,24.54403669,148.15,148.1,32.75192014]
[1745946301353,24.54403669,148.15,148.1,57.29595683]
[1745946301538,24.54403669,148.13,148.07,15.56]
[1745946301744,24.54403669,148.13,148.08,57.29682661]
[1745946302579,31.63415957,148.16,148.07,6.75349012]
[1745946302580,24.54403669,148.11,148.07,6.75349012]
[1745946302764,24.54403669,148.11,148.07,31.29752681]
[1745946302968,40.55956448,148.15,148.08,24.54403669]
[1745946302969,24.54403669,148.12,148.08,24.54403669]
[1745946303288,24.54403669,148.13,148.09,24.54403669]
[1745946304199,24.54403669,148.12,148.09,6.75265041]
[1745946304555,24.54403669,148.12,148.07,32.7535625]
[1745946304785,24.54403669,148.11,148.07,57.29759919]
[1745946305079,24.54403669,148.12,148.08,24.54403669]
[1745946305263,18.64964886,148.14,148.09,24.54403669]
[1745946305463,24.54403669,148.13,148.09,24.54403669]
[1745946305757,18.71264886,148.16,148.12,24.54403669]
[1745946305960,0.063,148.16,148.13,24.54403669]
[1745946306182,24.54403669,148.14,148.07,55.95096876]
[1745946306358,24.54403669,148.14,148.1,24.54403669]
[1745946306561,24.54403669,148.13,148.09,24.54403669]
[1745946308984,24.54403669,148.13,148.09,24.54403669]
[1745946309584,24.54403669,148.12,148.08,24.54403669]
[1745946311085,24.54403669,148.12,148.08,31.2969357]
[1745946311687,18.64964886,148.15,148.09,24.54403669]
[1745946311886,24.54403669,148.13,148.09,24.54403669]
[1745946312984,24.54403669,148.13,148.09,31.29649726]
[1745946313495,24.54403669,148.13,148.09,6.75246057]
[1745946313794,24.54403669,148.13,148.09,31.29649726]
[1745946317772,24.54403669,148.13,148.09,24.54403669]
[1745946317976,25.399591,148.15,148.07,6.75346657]
[1745946317977,24.54403669,148.11,148.07,6.75346657]
[1745946318169,24.54403669,148.11,148.07,31.29750326]
[1745946318369,24.54403669,148.1,148.07,31.29750326]
[1745946318585,18.64964886,148.15,148.06,0.063]
[1745946318586,24.54403669,148.08,148.06,0.063]
[1745946318777,24.54403669,148.07,148.06,0.063]
[1745946318972,24.54403669,148.08,148.06,0.063]
[1745946320101,24.54403669,148.07,148.06,0.063]
[1745946321585,15.18,148.1,148.06,0.063]
[1745946321897,15.18,148.1,148.07,24.54403669]
[1745946322104,24.54403669,148.09,148.06,0.063]
[1745946323165,15.18,148.1,148.06,24.60703669]
[1745946323376,15.18,148.1,148.08,31.29714311]
[1745946323587,24.54403669,148.12,148.08,31.29714311]
[1745946323776,15.02,148.14,148.09,24.54403669]
[1745946323982,24.54403669,148.13,148.09,24.54403669]
[1745946324472,24.54403669,148.12,148.08,31.29714311]
[1745946324890,24.54403669,148.12,148.08,6.75310642]
[1745946325196,15.02,148.14,148.07,24.54403669]
[1745946325197,24.54403669,148.11,148.07,24.54403669]
[1745946325673,24.54403669,148.11,148.07,31.29746261]
[1745946325873,24.54403669,148.12,148.08,24.54403669]
[1745946326509,24.54403669,148.13,148.09,24.54403669]
[1745946326997,39.56403669,148.14,148.1,24.54403669]
[1745946327177,15.02,148.14,148.13,24.54403669]
[1745946327376,0.063,148.16,148.13,24.54403669]
[1745946327586,0.063,148.16,148.14,24.54403669]
[1745946327790,0.063,148.16,148.13,24.54403669]
[1745946328704,0.063,148.16,148.13,31.29481464]
[1745946329205,0.063,148.16,148.13,24.54403669]
[1745946330116,0.063,148.16,148.13,31.29478821]
[1745946330284,0.063,148.16,148.14,24.54403669]
[1745946330905,0.063,148.16,148.13,24.54403669]
[1745946331295,0.063,148.16,148.12,6.75113974]
[1745946331578,24.60703669,148.16,148.12,24.54403669]
[1745946332010,24.54403669,148.15,148.11,31.29560439]
[1745946332391,24.54403669,148.15,148.11,6.7515677]
[1745946332594,24.54403669,148.15,148.11,31.29560439]
[1745946335700,24.54403669,148.15,148.11,24.54403669]
[1745946336193,24.54403669,148.14,148.08,6.75310642]
[1745946336393,24.54403669,148.14,148.1,24.54403669]
[1745946337510,0.063,148.16,148.11,24.54403669]
[1745946337706,24.54403669,148.15,148.11,31.29539164]
[1745946338094,0.063,148.16,148.14,24.54403669]
[1745946338314,0.063,148.16,148.13,24.54403669]
[1745946340208,24.60703669,148.16,148.12,31.2950014]
[1745946341516,0.063,148.16,148.12,31.2950014]
[1745946341816,24.60703669,148.16,148.12,31.2950014]
[1745946345122,0.063,148.16,148.13,24.54403669]
[1745946346420,24.60703669,148.16,148.12,24.54403669]
[1745946347409,24.60703669,148.16,148.11,6.75173857]
[1745946347717,24.60703669,148.16,148.12,31.29524341]
[1745946347918,24.54403669,148.14,148.11,6.75153929]
[1745946348122,24.54403669,148.13,148.07,7.03788564]
[1745946348296,24.54403669,148.14,148.1,24.54403669]
[1745946350413,24.54403669,148.14,148.1,31.29601715]
[1745946351005,6.81267969,148.16,148.11,24.54403669]
[1745946351203,24.54403669,148.14,148.11,24.54403669]
[1745946351927,24.54403669,148.14,148.1,24.54403669]
[1745946353522,24.54403669,148.14,148.08,6.75310642]
[1745946353523,24.54403669,148.13,148.08,6.75310642]
[1745946353721,24.54403669,148.13,148.09,24.54403669]
[1745946353920,0.063,148.16,148.12,49.08807338]
[1745946354131,0.063,148.16,148.15,24.54403669]
[1745946354301,18.64964886,148.2,148.1,27.6244]
[1745946354622,24.54403669,148.17,148.12,24.54403669]
[1745946355731,24.54403669,148.17,148.13,6.75082697]
[1745946356029,24.54403669,148.15,148.11,31.29577526]
[1745946356410,24.54403669,148.15,148.11,6.75173857]
[1745946356617,24.54403669,148.13,148.11,6.75173857]
[1745946357596,24.54403669,148.14,148.1,6.75219446]
[1745946357826,24.54403669,148.14,148.1,31.29623115]
[1745946358520,39.54403669,148.16,148.11,24.54403669]
[1745946358932,24.54403669,148.15,148.11,24.54403669]
[1745946360044,24.54403669,148.15,148.12,6.75128274]
[1745946360221,24.54403669,148.13,148.09,26.0]
[1745946360531,15.0,148.16,148.07,6.7535625]
[1745946360532,24.54403669,148.1,148.07,6.7535625]
[1745946360750,24.54403669,148.08,148.06,0.063]
[1745946361042,43.19368555,148.07,148.06,0.063]
[1745946361245,24.54403669,148.07,148.06,0.063]
[1745946363029,18.79181043,148.09,148.06,0.063]
[1745946363234,24.54403669,148.07,148.06,0.063]
[1745946365937,18.64964886,148.07,148.06,0.063]
[1745946366110,43.19368555,148.07,148.06,0.063]
[1745946366442,50.23157119,148.07,148.06,0.063]
[1745946366617,74.77560788,148.07,148.06,0.063]
[1745946366817,50.23157119,148.07,148.06,0.063]
[1745946367311,18.64964886,148.04,148.03,0.063]
[1745946367512,18.64964886,148.04,148.01,0.063]
[1745946367513,0.14216157,148.03,148.01,0.063]
[1745946367723,43.33584712,148.02,148.01,0.063]
[1745946368421,43.47800869,148.02,148.01,0.063]
[1745946369440,50.23385249,148.02,148.01,0.063]
[1745946370236,43.47800869,148.02,148.01,0.063]
[1745946370447,43.19368555,148.02,148.01,0.063]
[1745946370735,15.02,148.04,148.01,24.60703669]
[1745946371117,24.54403669,148.06,148.02,24.54403669]
[1745946371440,24.54403669,148.08,148.04,31.29851195]
[1745946371814,39.56403669,148.09,148.04,31.29851195]
[1745946372022,15.02,148.09,148.05,24.54403669]
[1745946372238,15.02,148.09,148.07,24.54403669]
[1745946372412,253.66906157,148.13,148.07,24.54403669]
[1745946372614,24.54403669,148.12,148.08,24.54403669]
[1745946373011,24.54403669,148.11,148.07,24.54403669]
[1745946373217,24.54403669,148.12,148.08,24.54403669]
[1745946373416,246.9,148.13,148.04,8.36327526]
[1745946373417,24.54403669,148.11,148.07,24.54403669]
[1745946374939,24.54403669,148.08,148.01,26.063]
[1745946375130,24.54403669,148.07,148.03,24.54403669]
[1745946375335,24.54403669,148.08,148.03,24.54403669]
[1745946376029,18.79181043,148.11,148.06,24.54403669]
[1745946376217,24.54403669,148.11,148.06,24.54403669]
[1745946376413,24.54403669,148.11,148.07,24.54403669]
[1745946376614,24.54403669,148.1,148.06,24.54403669]
[1745946376835,18.79181043,148.12,148.07,24.54403669]
[1745946377038,24.54403669,148.11,148.07,24.54403669]
[1745946377224,15.02,148.13,148.1,24.54403669]
[1745946377424,15.02,148.18,148.12,24.54403669]
[1745946377659,24.54403669,148.15,148.11,24.54403669]
[1745946377857,24.54403669,148.13,148.09,24.54403669]
[1745946378264,24.54403669,148.14,148.1,24.54403669]
[1745946378564,24.54403669,148.15,148.1,24.54403669]
[1745946378771,18.64964886,148.17,148.12,24.54403669]
[1745946378945,24.54403669,148.16,148.12,24.54403669]
[1745946379140,24.54403669,148.16,148.11,24.54403669]
[1745946379440,24.54403669,148.14,148.1,24.54403669]
[1745946379773,6.75265041,148.09,148.02,1.6649]
[1745946380069,37.18433494,148.06,148.02,1.6649]
[1745946380267,37.18433494,148.04,148.01,0.063]
[1745946380459,37.18433494,148.03,148.01,0.063]
[1745946380665,0.14216157,148.08,148.01,0.063]
[1745946380666,37.18433494,148.02,148.01,0.063]
[1745946380969,37.18433494,148.04,148.01,0.063]
[1745946381375,0.14216157,148.06,148.01,0.063]
[1745946381555,37.18433494,148.04,148.01,0.063]
[1745946381756,37.18433494,148.03,148.01,0.063]
[1745946382064,55.8339838,148.02,148.01,0.063]
[1745946383966,62.73198917,148.02,148.01,0.063]
[1745946384953,62.87415074,148.02,148.01,0.063]
[1745946386147,55.97614537,148.02,148.01,0.063]
[1745946386451,15.02,148.05,148.01,0.063]
[1745946386669,37.18433494,148.02,148.01,0.063]
[1745946387253,55.97614537,148.02,148.01,0.063]
[1745946387489,56.11830694,148.02,148.01,0.063]
[1745946387784,63.65250694,148.02,148.01,0.063]
[1745946387951,70.40835074,148.02,148.01,0.063]
[1745946388363,55.97614537,148.02,148.01,0.063]
[1745946388948,37.18433494,148.02,148.01,0.063]
[1745946390679,62.87415074,148.02,148.01,0.063]
[1745946391874,62.5898276,148.02,148.01,0.063]
[1745946392078,62.73198917,148.02,148.01,0.063]
[1745946392380,55.97614537,148.02,148.01,0.063]
[1745946394493,62.73198917,148.02,148.01,0.063]
[1745946395903,62.87415074,148.02,148.01,0.063]
[1745946396805,100.34280882,148.02,148.0,0.063]
[1745946397106,93.58696502,148.01,148.0,0.063]
[1745946397993,100.34326526,148.01,148.0,0.063]
[1745946399204,37.18433494,148.01,148.0,0.063]
[1745946400099,43.94063518,148.01,148.0,0.063]
[1745946400406,55.8339838,148.01,148.0,0.063]
[1745946401485,62.59028404,148.01,148.0,0.063]
[1745946401985,55.8339838,148.01,148.0,0.063]
[1745946402204,37.18433494,148.02,148.0,0.063]
[1745946403405,37.18433494,148.01,148.0,0.063]
[1745946404508,18.64964886,148.02,148.0,0.063]
[1745946404687,37.18433494,148.02,148.0,0.063]
[1745946405302,37.18433494,148.01,148.0,0.063]
[1745946405487,55.8339838,148.01,148.0,0.063]
[1745946407014,56.11830694,148.01,148.0,0.063]
[1745946407303,62.87460718,148.01,148.0,0.063]
[1745946407507,50.269151,148.01,148.0,0.063]
[1745946409108,43.51285076,148.01,148.0,0.063]
[1745946409305,43.22852762,148.01,148.0,0.063]
[1745946409885,43.22852762,148.02,148.0,0.063]
[1745946410209,24.57887876,148.02,148.0,0.063]
[1745946411311,24.57887876,148.01,148.0,0.063]
[1745946411610,37.25166248,148.01,148.0,0.063]
[1745946412307,55.90131134,148.01,148.0,0.063]
[1745946412610,56.04347291,148.01,148.0,0.063]
[1745946413402,62.79977315,148.01,148.0,0.063]
[1745946413705,62.94193472,148.01,148.0,0.063]
[1745946414098,56.18563448,148.01,148.0,0.063]
[1745946414712,56.04347291,148.01,148.0,0.063]
[1745946416812,62.79977315,148.01,148.0,0.063]
[1745946417289,56.04347291,148.01,148.0,0.063]
[1745946417492,55.90131134,148.01,148.0,0.063]
[1745946417905,18.64964886,148.02,148.0,0.063]
[1745946418105,37.25166248,148.01,148.0,0.063]
[1745946419217,55.90131134,148.01,148.0,0.063]
[1745946419717,62.65761158,148.01,148.0,0.063]
[1745946420611,55.90131134,148.01,148.0,0.063]
[1745946421404,18.64964886,148.01,148.0,0.063]
[1745946421911,55.90131134,148.01,148.0,0.063]
[1745946422217,62.65761158,148.01,148.0,0.063]
[1745946422714,62.94193472,148.01,148.0,0.063]
[1745946423107,63.22625786,148.01,148.0,0.063]
[1745946423294,62.94193472,148.01,148.0,0.063]
[1745946424325,18.64964886,148.01,148.0,0.063]
[1745946424628,15.0,148.03,148.0,37.31466248]
[1745946424805,15.0,148.03,148.01,37.25166248]
[1745946425009,18.64964886,148.06,148.02,37.25166248]
[1745946425211,37.25166248,148.06,148.01,44.00787812]
[1745946425409,37.25166248,148.05,148.01,6.75621564]
[1745946425613,21.76376909,148.07,148.01,44.00787812]
[1745946425821,37.25166248,148.05,148.01,44.00787812]
[1745946426325,37.25166248,148.05,148.0,0.063]
[1745946426326,18.64964886,148.01,148.0,0.063]
[1745946426501,37.25166248,148.01,148.0,0.063]
[1745946426704,55.90131134,148.01,148.0,0.063]
[1745946426917,56.04347291,148.01,148.0,0.063]
[1745946427304,77.92193472,148.01,148.0,0.063]
[1745946431609,65.24704846,148.01,148.0,0.063]
[1745946432415,58.34858665,148.01,148.0,0.063]
[1745946432618,58.20642508,148.01,148.0,0.063]
[1745946433023,58.34858665,148.01,148.0,0.063]
[1745946433242,65.10488689,148.01,148.0,0.063]
[1745946436131,24.57677622,148.02,148.0,0.063]
[1745946436436,0.14216157,148.04,148.0,0.063]
[1745946436437,18.64964886,148.04,148.0,0.063]
[1745946436745,24.57677622,148.02,148.0,0.063]
[1745946437314,24.57677622,148.03,148.0,0.063]
[1745946437946,24.57677622,148.02,148.0,0.063]
[1745946438141,0.14216157,148.03,148.0,0.063]
[1745946438355,24.57677622,148.02,148.0,0.063]
[1745946439652,24.57677622,148.03,148.0,0.063]
[1745946440153,24.57677622,148.02,148.0,0.063]
[1745946440449,24.57677622,148.01,148.0,0.063]
[1745946440622,43.22642508,148.01,148.0,0.063]
[1745946441232,24.57677622,148.01,148.0,0.063]
[1745946441434,18.64964886,148.04,148.0,24.63977622]
[1745946441627,43.22642508,148.04,148.0,24.63977622]
[1745946441832,24.57677622,148.03,148.0,0.063]
[1745946442044,24.57677622,148.04,148.0,0.063]
[1745946442243,14.98,148.05,148.02,24.57677622]
[1745946442746,39.55677622,148.05,148.01,26.08587622]
[1745946442950,14.98,148.05,148.02,24.57677622]
[1745946443135,24.57677622,148.06,148.02,24.57677622]
[1745946443343,0.03,148.07,148.03,24.57677622]
[1745946443548,0.03,148.07,148.03,31.33212166]
[1745946443935,24.60677622,148.07,148.03,24.57677622]
[1745946444133,24.60677622,148.07,148.02,31.33246999]
[1745946444963,0.03,148.07,148.04,24.57677622]
[1745946445136,0.03,148.07,148.02,6.75569377]
[1745946445137,0.03,148.07,148.05,24.57677622]
[1745946445648,0.03,148.07,148.06,24.57677622]
[1745946446760,0.03,148.07,148.03,24.57677622]
[1745946446936,24.57677622,148.06,148.01,8.26520974]
[1745946447135,24.57677622,148.06,148.01,32.84198596]
[1745946447751,0.03,148.07,148.01,32.84198596]
[1745946447752,24.57677622,148.05,148.01,32.84198596]
[1745946447955,24.57677622,148.06,148.01,32.84198596]
[1745946448327,24.57677622,148.06,148.01,8.26520974]
[1745946448531,24.57677622,148.06,148.02,24.57677622]
[1745946449778,24.57677622,148.06,148.01,26.08587622]
[1745946449937,24.57677622,148.06,148.0,0.063]
[1745946449938,24.57677622,148.03,148.0,0.063]
[1745946450133,24.57677622,148.04,148.0,0.063]
[1745946450445,18.64964886,148.05,148.01,24.57677622]
[1745946450634,58.19642508,148.07,148.03,24.57677622]
[1745946450839,39.54677622,148.07,148.03,24.57677622]
[1745946451059,14.97,148.07,148.04,24.57677622]
[1745946452750,0.03,148.07,148.05,24.57677622]
[1745946453351,0.03,148.07,148.06,24.57677622]
[1745946453945,0.03,148.07,148.06,31.33079486]
[1745946455065,0.03,148.07,148.06,57.33079486]
[1745946461639,0.03,148.07,148.05,6.75435206]
[1745946461838,0.03,148.07,148.06,24.57677622]
[1745946462072,0.03,148.07,148.04,24.57677622]
[1745946462371,0.03,148.07,148.05,24.57677622]
[1745946463670,0.03,148.07,148.03,6.75520094]
[1745946463871,0.03,148.07,148.04,24.57677622]
[1745946464173,0.03,148.07,148.05,24.57677622]
[1745946464546,0.03,148.07,148.06,24.57677622]
[1745946466159,0.03,148.07,148.06,31.33079486]
[1745946466548,0.03,148.07,148.06,24.57677622]
[1745946467176,0.03,148.07,148.06,31.33079486]
[1745946470855,0.03,148.07,148.06,24.57677622]
[1745946471056,0.03,148.07,148.06,31.33079486]
[1745946474886,0.03,148.07,148.06,31.33079486]
[1745946476095,1e-08,148.07,148.06,121.74675643]
[1745946476302,0.03,148.09,148.08,26.0]
[1745946476590,0.03,148.09,148.08,50.57677622]
[1745946477081,0.03,148.09,148.08,57.32988264]
[1745946477287,0.03,148.09,148.08,57.47204421]
[1745946477479,0.03,148.09,148.08,57.32988264]
[1745946478598,0.03,148.09,148.08,57.61420578]
[1745946480075,0.03,148.09,148.08,57.32988264]
[1745946480981,0.03,148.09,148.08,50.57677622]
[1745946482181,0.03,148.09,148.08,57.32988264]
[1745946483674,0.03,148.09,148.08,50.57677622]
[1745946484088,0.03,148.09,148.08,57.32988264]
[1745946485080,0.03,148.09,148.08,50.57677622]
[1745946485279,0.03,148.09,148.08,57.32988264]
[1745946486305,0.03,148.09,148.08,24.57677622]
[1745946490002,0.03,148.09,148.08,31.32988264]
[1745946490187,0.03,148.09,148.08,31.61420578]
[1745946490394,0.03,148.09,148.08,57.61420578]
[1745946490908,0.03,148.09,148.08,26.0]
[1745946491116,0.03,148.09,148.08,50.57677622]
[1745946491286,0.03,148.09,148.08,57.32988264]
[1745946492986,0.03,148.09,148.08,31.61420578]
[1745946493193,0.03,148.13,148.11,26.0]
[1745946493497,0.03,148.13,148.12,24.57677622]
[1745946494017,0.03,148.13,148.12,31.32805896]
[1745946496104,0.03,148.13,148.12,24.57677622]
[1745946496289,0.03,148.13,148.12,31.32805896]
[1745946496603,0.03,148.13,148.12,24.57677622]
[1745946496807,0.03,148.13,148.12,31.32805896]
[1745946498806,0.03,148.13,148.12,55.90483518]
[1745946498992,0.03,148.13,148.12,31.32805896]
[1745946501520,0.03,148.13,148.12,6.75128274]
[1745946501712,0.03,148.13,148.12,24.57677622]
[1745946502317,0.03,148.13,148.11,32.75159639]
[1745946502612,0.03,148.13,148.12,24.57677622]
[1745946502788,0.03,148.13,148.11,32.75159639]
[1745946503119,0.03,148.13,148.12,24.07677622]
[1745946503303,0.03,148.13,148.12,24.57677622]
[1745946505416,0.03,148.13,148.12,31.32805896]
[1745946509819,0.03,148.13,148.12,24.57677622]
[1745946510006,0.03,148.13,148.12,31.32805896]
[1745946510400,0.03,148.13,148.12,24.57677622]
[1745946510701,0.03,148.13,148.12,31.32805896]
[1745946515604,0.03,148.13,148.12,22.06824763]
[1745946517236,0.03,148.13,148.12,37.38521252]
[1745946517529,0.03,148.13,148.12,37.66953566]
[1745946518425,0.03,148.13,148.12,22.35257077]
[1745946518929,0.03,148.13,148.12,37.66953566]
[1745946521209,0.03,148.13,148.12,22.35257077]
[1745946522311,0.03,148.13,148.12,37.66953566]
[1745946523710,0.03,148.13,148.12,39.01921138]
[1745946525346,1e-08,148.13,148.12,39.01921138]
[1745946525644,0.03,148.15,148.14,26.28432314]
[1745946525818,0.03,148.16,148.15,0.28432314]
[1745946526136,0.03,148.18,148.15,41.60128803]
[1745946526315,0.03,148.19,148.18,0.28432314]
[1745946526629,0.03,148.19,148.18,56.91825292]
[1745946527538,0.03,148.19,148.18,63.66680198]
[1745946528125,0.03,148.24,148.18,81.88731395]
[1745946528332,0.03,148.24,148.2,41.60128803]
[1745946530439,0.03,148.24,148.2,48.34892635]
[1745946535245,0.03,148.24,148.2,48.06460321]
[1745946541943,0.03,148.24,148.2,23.69807074]
[1745946542162,0.03,148.24,148.23,26.0]
[1745946542445,0.03,148.25,148.24,0.28432314]
[1745946542641,0.03,148.25,148.24,30.91825292]
[1745946543031,0.03,148.26,148.24,30.91825292]
[1745946543232,0.03,148.26,148.25,56.63392978]
[1745946543432,0.03,148.26,148.25,63.37929234]
[1745946543958,0.03,148.26,148.25,48.06232745]
[1745946544335,0.03,148.26,148.25,64.72783015]
[1745946544633,0.03,148.26,148.25,49.41086526]
[1745946544843,0.03,148.26,148.25,48.34665059]
[1745946546137,0.03,148.26,148.25,63.66361548]
[1745946546943,0.03,148.26,148.25,48.34665059]
[1745946547645,0.03,148.26,148.25,48.06232745]
[1745946547846,0.03,148.26,148.25,41.31696489]
[1745946548062,0.03,148.26,148.25,26.0]
[1745946548353,0.03,148.26,148.25,41.31696489]
[1745946549050,0.03,148.26,148.25,26.0]
[1745946549226,0.03,148.26,148.25,15.31696489]
[1745946550936,0.03,148.26,148.23,41.31696489]
[1745946551132,16.98326489,148.26,148.23,26.0]
[1745946551432,1.6663,148.26,148.23,41.31696489]
[1745946552349,15.31696489,148.25,148.21,6.74699668]
[1745946552547,15.31696489,148.25,148.21,48.06396157]
[1745946554240,1.6663,148.26,148.21,48.06396157]
[1745946554441,15.31696489,148.25,148.21,48.06396157]
[1745946555250,33.96661375,148.24,148.2,15.31696489]
[1745946555440,15.31696489,148.22,148.18,15.37996489]
[1745946555640,15.31696489,148.22,148.18,41.37996489]
[1745946555958,15.31696489,148.21,148.18,0.063]
[1745946556128,15.31696489,148.2,148.18,0.063]
[1745946558052,15.31696489,148.19,148.18,0.063]
[1745946558936,1.6475,148.2,148.18,15.37996489]
[1745946559159,6.5732,148.22,148.19,15.31696489]
[1745946559467,6.5732,148.22,148.2,15.31696489]
[1745946559642,6.5732,148.22,148.19,6.74806592]
[1745946559839,21.89016489,148.22,148.18,22.12830406]
[1745946560042,15.31696489,148.21,148.18,6.81133917]
[1745946560263,21.89016489,148.22,148.18,22.12830406]
[1745946560467,21.89016489,148.22,148.18,48.12830406]
[1745946560643,6.5732,148.22,148.19,15.31696489]
[1745946560843,18.64964886,148.23,148.19,15.31696489]
[1745946560844,33.96661375,148.23,148.19,15.31696489]
[1745946561041,20.29714886,148.24,148.21,15.31696489]
[1745946561465,20.29714886,148.24,148.21,22.06408584]
[1745946561659,1.6475,148.24,148.21,22.06408584]
[1745946561971,1.6475,148.24,148.23,15.31696489]
[1745946562171,1.6475,148.24,148.22,15.31696489]
[1745946562844,1.6475,148.24,148.21,22.06408584]
[1745946565341,33.99661375,148.26,148.22,15.31696489]
[1745946566648,33.99661375,148.26,148.22,22.06325179]
[1745946566848,15.31696489,148.25,148.22,6.7462869]
[1745946567263,0.03,148.26,148.24,15.31696489]
[1745946568565,0.03,148.26,148.23,15.31696489]
[1745946568761,0.03,148.26,148.24,6.74581759]
[1745946569263,0.03,148.26,148.23,15.31696489]
[1745946569444,15.31696489,148.25,148.22,6.74658723]
[1745946569967,15.34696489,148.26,148.22,22.06355212]
[1745946570163,0.03,148.26,148.23,15.31696489]
[1745946570543,0.03,148.26,148.24,15.31696489]
[1745946570771,0.03,148.26,148.25,15.31696489]
[1745946570965,0.03,148.26,148.25,22.06232745]
[1745946576172,0.03,148.26,148.24,48.06258253]
[1745946576782,0.03,148.26,148.25,15.31696489]
[1745946576988,0.03,148.26,148.24,48.06258253]
[1745946577157,15.34696489,148.26,148.24,26.0]
[1745946577359,0.03,148.26,148.24,32.74574773]
[1745946578478,0.03,148.26,148.24,26.0]
[1745946578869,0.03,148.26,148.24,48.06272044]
[1745946579989,0.03,148.26,148.25,15.31696489]
[1745946580586,0.03,148.26,148.24,48.06272044]
[1745946581285,0.03,148.26,148.24,41.31696489]
[1745946581468,0.03,148.26,148.24,26.0]
[1745946581868,15.31696489,148.25,148.21,15.31696489]
[1745946582061,33.99661375,148.26,148.22,15.31696489]
[1745946582871,18.67964886,148.26,148.23,15.31696489]
[1745946583076,33.99661375,148.26,148.22,15.31696489]
[1745946583687,33.99661375,148.26,148.21,6.74718305]
[1745946583866,18.67964886,148.26,148.22,15.31696489]
[1745946584091,33.99661375,148.26,148.22,15.31696489]
[1745946585089,33.99661375,148.26,148.22,22.06352773]
[1745946586279,0.03,148.26,148.23,15.31696489]
[1745946588088,15.34696489,148.26,148.22,15.31696489]
[1745946588266,33.99661375,148.26,148.22,15.31696489]
[1745946589802,33.99661375,148.26,148.21,6.74702957]
[1745946589971,15.31696489,148.25,148.2,32.74743693]
[1745946590173,15.31696489,148.25,148.21,15.31696489]
[1745946590479,18.64964886,148.25,148.22,15.31696489]
[1745946590673,15.34696489,148.26,148.22,15.31696489]
[1745946590873,33.99661375,148.26,148.22,15.31696489]
[1745946593992,18.67964886,148.26,148.23,15.31696489]
[1745946594207,0.03,148.26,148.23,15.31696489]
[1745946594505,0.03,148.26,148.21,0.28432314]
[1745946594802,0.03,148.26,148.24,15.31696489]
[1745946595908,0.03,148.26,148.23,15.31696489]